bitfinex/quotes_SOLUSD_20250306
["timestamp","ask_amount","ask_price","bid_price","bid_amount"]
[1741285978616,54.30773772,144.07,144.06,0.0001]
[1741285979288,29.50288886,144.07,144.06,0.0001]
[1741285979497,29.24856572,144.09,144.06,0.0001]
[1741285980027,0.28432314,144.08,144.06,0.0001]
[1741285981001,48.15253772,144.08,144.06,0.0001]
[1741285981212,48.15253772,144.07,144.06,0.0001]
[1741285982810,29.50288886,144.07,144.06,0.0001]
[1741285983295,36.44388886,144.07,144.06,0.0001]
[1741285984388,55.09353772,144.07,144.06,0.0001]
[1741285985422,29.50288886,144.07,144.06,0.0001]
[1741285985618,0.28432314,144.07,144.06,0.0001]
[1741285985989,29.24856572,144.09,144.06,0.0001]
[1741285986309,0.28432314,144.08,144.06,0.0001]
[1741285986493,18.54707418,144.08,144.06,0.0001]
[1741285987326,25.48807418,144.07,144.06,0.0001]
[1741285987489,26.51120375,144.07,144.06,0.0001]
[1741285988092,25.48807418,144.07,144.06,0.0001]
[1741285988393,0.03,144.09,144.08,20.14216157]
[1741285988723,0.03,144.13,144.12,0.14216157]
[1741285989008,0.03,144.15,144.14,20.14216157]
[1741285989521,0.03,144.22,144.15,25.34211261]
[1741285989822,0.03,144.22,144.15,265.34797195]
[1741285990042,0.03,144.22,144.15,270.71176147]
[1741285990222,61.81600537,144.21,144.15,82.1]
[1741285990523,29.21404043,144.18,144.12,6.82]
[1741285990812,29.21404043,144.16,144.12,0.14216157]
[1741285991018,0.03,144.16,144.12,0.14216157]
[1741285991216,0.31432314,144.16,144.12,0.14216157]
[1741285991511,0.03,144.16,144.15,29.326202]
[1741285991709,0.03,144.16,144.15,249.226202]
[1741285991909,0.03,144.18,144.17,0.14216157]
[1741285992109,0.03,144.18,144.17,49.43184456]
[1741285992292,0.0001,144.18,144.17,581.33184456]
[1741285992493,0.03,144.21,144.2,20.14216157]
[1741285992695,0.03,144.21,144.2,249.226202]
[1741285993587,0.03,144.22,144.21,0.14216157]
[1741285993787,0.03,144.22,144.21,29.326202]
[1741285994189,0.03,144.22,144.21,30.78183145]
[1741285994590,0.03,144.22,144.21,29.326202]
[1741285994812,0.03,144.22,144.21,82.24216157]
[1741285995321,0.28432314,144.21,144.15,88.92]
[1741285995490,29.46836357,144.21,144.15,118.10404043]
[1741285996096,29.46836357,144.21,144.16,0.14216157]
[1741285996508,0.03,144.22,144.17,29.18404043]
[1741285996712,0.03,144.22,144.19,0.14216157]
[1741285997333,0.14216157,144.21,144.18,82.1]
[1741285997513,0.28432314,144.21,144.18,82.1]
[1741285997714,29.73229024,144.21,144.18,82.1]
[1741285998335,0.28432314,144.21,144.18,82.1]
[1741286000322,0.03,144.22,144.19,0.14216157]
[1741286001036,28.47933552,144.22,144.19,0.14216157]
[1741286001441,29.21404043,144.22,144.19,0.14216157]
[1741286001729,27.21789649,144.21,144.18,82.1]
[1741286001930,29.18404043,144.2,144.18,82.1]
[1741286002231,29.18404043,144.2,144.17,0.14216157]
[1741286002738,49.18404043,144.18,144.12,111.28404043]
[1741286002908,29.46836357,144.17,144.12,82.1]
[1741286003102,0.28432314,144.17,144.13,0.14216157]
[1741286003729,107.58394886,144.21,144.15,0.14216157]
[1741286003730,0.28432314,144.2,144.15,0.14216157]
[1741286003942,0.28432314,144.18,144.15,0.14216157]
[1741286005343,27.56074032,144.17,144.15,0.14216157]
[1741286005535,0.28432314,144.18,144.15,0.14216157]
[1741286005718,0.28432314,144.18,144.15,0.17516157]
[1741286006118,36.40416357,144.18,144.15,0.033]
[1741286007048,0.28432314,144.18,144.15,0.033]
[1741286007639,29.46836357,144.18,144.15,0.033]
[1741286007815,1.02312957,144.2,144.15,0.033]
[1741286008137,0.28432314,144.16,144.15,0.033]
[1741286008321,29.46836357,144.16,144.15,0.033]
[1741286008938,49.141142,144.16,144.09,82.1]
[1741286009117,29.46836357,144.11,144.06,82.1001]
[1741286009435,29.46836357,144.09,144.06,0.0001]
[1741286009636,0.28432314,144.07,144.06,0.0001]
[1741286010026,36.40936357,144.07,144.06,0.0001]
[1741286010223,56.082142,144.07,144.06,0.0001]
[1741286010439,55.05901243,144.07,144.06,0.0001]
[1741286012030,56.082142,144.07,144.06,0.0001]
[1741286012668,87.26618243,144.07,144.06,0.0001]
[1741286012867,56.082142,144.07,144.06,0.0001]
[1741286014164,85.26618243,144.07,144.06,0.0001]
[1741286014459,20.0,144.03,144.0,0.033]
[1741286014670,29.46836357,144.01,144.0,0.033]
[1741286014839,0.28432314,144.01,144.0,0.033]
[1741286015038,0.28432314,144.03,144.0,0.033]
[1741286015242,29.46836357,144.03,144.0,0.033]
[1741286015459,29.46836357,144.01,144.0,0.033]
[1741286015864,0.28432314,144.01,144.0,0.033]
[1741286016440,0.28432314,144.02,144.0,0.033]
[1741286018359,48.11801243,144.02,144.0,0.033]
[1741286019256,0.28432314,144.02,144.0,0.033]
[1741286019561,7.96462957,144.07,144.0,0.033]
[1741286019741,29.18404043,144.05,144.0,0.033]
[1741286020142,7.96462957,144.07,144.0,0.033]
[1741286020143,48.11801243,144.04,144.0,0.033]
[1741286020442,0.28432314,144.02,144.0,0.033]
[1741286020968,20.0,144.04,144.0,0.033]
[1741286021141,14.9731,144.09,144.02,0.14216157]
[1741286021340,29.18404043,144.08,144.02,341.326202]
[1741286021755,29.46836357,144.07,144.02,312.14216157]
[1741286021955,43.68827354,144.06,144.02,312.14216157]
[1741286022158,29.46836357,144.05,144.01,82.1]
[1741286022776,29.18404043,144.04,144.01,82.1]
[1741286023146,49.46836357,144.05,144.01,82.1]
[1741286023577,8.1531,144.09,144.04,0.14216157]
[1741286023764,0.28432314,144.07,144.04,0.14216157]
[1741286024068,0.28432314,144.08,144.04,0.14216157]
[1741286024448,47.83368929,144.1,144.04,36.268202]
[1741286024449,29.18404043,144.1,144.04,36.268202]
[1741286024648,0.28432314,144.09,144.04,36.268202]
[1741286024850,0.28432314,144.09,144.04,7.08416157]
[1741286025062,29.46836357,144.09,144.04,0.14216157]
[1741286025258,0.28432314,144.09,144.04,0.14216157]
[1741286025465,29.46836357,144.09,144.04,0.14216157]
[1741286025669,29.18404043,144.08,144.03,0.14216157]
[1741286025845,0.28432314,144.07,144.03,0.14216157]
[1741286026274,0.28432314,144.07,144.02,7.08556157]
[1741286027260,0.28432314,144.07,144.04,0.14216157]
[1741286028074,18.933972,144.09,144.04,0.14216157]
[1741286028284,18.933972,144.09,144.05,0.14216157]
[1741286028285,0.28432314,144.09,144.05,0.14216157]
[1741286028475,41.76515167,144.12,144.05,29.326202]
[1741286028664,0.28432314,144.11,144.07,0.14216157]
[1741286029892,6.9673,144.15,144.08,29.18404043]
[1741286030115,36.15134043,144.15,144.1,0.14216157]
[1741286030376,41.5877696,144.15,144.1,0.14216157]
[1741286030558,29.18404043,144.14,144.1,0.14216157]
[1741286030759,0.28432314,144.13,144.1,6.9395]
[1741286031086,41.5877696,144.15,144.11,0.14216157]
[1741286031254,0.28432314,144.14,144.11,0.14216157]
[1741286033384,7.22222314,144.14,144.11,0.14216157]
[1741286035073,0.28432314,144.12,144.09,82.1]
[1741286035269,0.28432314,144.12,144.07,29.326202]
[1741286035758,0.28432314,144.12,144.06,226.8415]
[1741286035959,0.28432314,144.12,144.09,0.14216157]
[1741286036159,0.28432314,144.14,144.11,0.14216157]
[1741286036356,0.28432314,144.14,144.09,29.18404043]
[1741286036562,29.46836357,144.14,144.1,0.14216157]
[1741286036970,29.46836357,144.14,144.1,312.14216157]
[1741286037176,7.22212314,144.14,144.1,29.326202]
[1741286037382,0.28432314,144.14,144.1,36.265802]
[1741286037679,6.9675,144.15,144.1,36.265802]
[1741286037881,6.9675,144.15,144.1,118.365802]
[1741286038185,0.03,144.15,144.11,29.18404043]
[1741286038357,0.03,144.15,144.13,29.326202]
[1741286038562,0.03,144.15,144.14,29.326202]
[1741286038968,0.03,144.15,144.14,0.14216157]
[1741286039980,0.03,144.15,144.12,0.14216157]
[1741286040281,0.03,144.15,144.12,312.14216157]
[1741286041102,0.03,144.15,144.12,0.14216157]
[1741286041298,53.49424043,144.15,144.1,137.8]
[1741286041467,0.28432314,144.13,144.09,29.18404043]
[1741286041662,0.28432314,144.14,144.1,29.326202]
[1741286042288,0.31432314,144.14,144.1,29.326202]
[1741286042488,0.03,144.14,144.1,29.326202]
[1741286043303,0.31432314,144.14,144.09,29.326202]
[1741286043583,29.49836357,144.14,144.09,0.14216157]
[1741286043989,0.31432314,144.14,144.09,29.326202]
[1741286044504,48.14801243,144.14,144.08,82.1]
[1741286044664,0.28432314,144.11,144.08,82.1]
[1741286044987,0.28432314,144.11,144.08,0.14216157]
[1741286045505,6.9678,144.14,144.1,29.18404043]
[1741286045792,0.31432314,144.14,144.11,0.14216157]
[1741286045977,7.25202314,144.14,144.11,0.14216157]
[1741286046181,6.9677,144.14,144.11,0.14216157]
[1741286046483,6.9677,144.14,144.1,29.326202]
[1741286046685,0.03,144.14,144.1,29.326202]
[1741286047493,6.9678,144.14,144.09,29.326202]
[1741286047695,29.18404043,144.12,144.08,82.1]
[1741286047863,0.28432314,144.12,144.06,249.08404043]
[1741286048064,6.9678,144.14,144.09,0.14216157]
[1741286048292,0.28432314,144.13,144.1,29.18404043]
[1741286048591,0.03,144.14,144.11,0.14216157]
[1741286050172,0.03,144.14,144.11,7.08116157]
[1741286050368,0.03,144.14,144.11,36.265202]
[1741286051709,0.03,144.14,144.11,0.14216157]
[1741286052080,0.03,144.14,144.11,111.426202]
[1741286052278,0.03,144.14,144.13,29.326202]
[1741286052475,0.03,144.14,144.13,303.87989129]
[1741286053702,0.03,144.14,144.13,292.16834243]
[1741286053867,0.03,144.14,144.13,262.984302]
[1741286054281,0.03,144.15,144.14,0.14216157]
[1741286054478,0.03,144.15,144.14,29.326202]
[1741286054891,0.03,144.15,144.14,36.263802]
[1741286055270,0.03,144.15,144.14,312.0]
[1741286055497,0.03,144.15,144.13,255.90404043]
[1741286055811,0.03,144.15,144.13,88.92]
[1741286056096,0.03,144.15,144.14,0.14216157]
[1741286058200,0.03,144.15,144.12,82.1]
[1741286058978,6.9672,144.15,144.12,82.1]
[1741286059176,0.03,144.15,144.13,0.14216157]
[1741286059395,0.03,144.15,144.13,29.326202]
[1741286059973,0.03,144.15,144.14,29.326202]
[1741286060505,0.03,144.15,144.14,249.226202]
[1741286060980,0.03,144.15,144.14,276.37685086]
[1741286061385,0.03,144.21,144.2,0.14216157]
[1741286061596,0.03,144.21,144.2,82.24216157]
[1741286062272,0.03,144.21,144.2,394.24216157]
[1741286064181,0.03,144.21,144.2,394.1]
[1741286064400,0.31432314,144.21,144.2,82.1]
[1741286064575,0.03,144.21,144.18,0.14216157]
[1741286064776,0.03,144.21,144.17,29.18404043]
[1741286065082,0.03,144.21,144.18,0.14216157]
[1741286065487,0.03,144.21,144.17,82.1]
[1741286065898,0.03,144.21,144.18,0.14216157]
[1741286067503,0.03,144.21,144.18,312.14216157]
[1741286069099,0.03,144.21,144.16,18.22719842]
[1741286069100,18.54152156,144.21,144.16,82.1]
[1741286069308,6.9348,144.2,144.17,0.14216157]
[1741286069481,6.9645,144.21,144.17,0.14216157]
[1741286069677,0.03,144.21,144.19,0.14216157]
[1741286069891,0.03,144.21,144.2,0.14216157]
[1741286070083,0.03,144.21,144.2,82.24216157]
[1741286070285,0.03,144.21,144.2,100.46935999]
[1741286070883,0.03,144.21,144.2,82.24216157]
[1741286072094,0.03,144.21,144.2,394.24216157]
[1741286072394,0.03,144.21,144.18,6.8]
[1741286072395,0.31432314,144.21,144.17,82.1]
[1741286072699,18.25719842,144.21,144.18,0.14216157]
[1741286072908,18.22719842,144.2,144.17,82.1]
[1741286073485,6.9348,144.2,144.17,82.1]
[1741286073796,27.24882314,144.21,144.18,0.14216157]
[1741286074991,18.22719842,144.2,144.17,82.1]
[1741286075197,0.28432314,144.18,144.14,219.9]
[1741286075392,6.9358,144.18,144.15,0.14216157]
[1741286075592,18.22719842,144.19,144.15,0.14216157]
[1741286075593,25.16259842,144.19,144.15,0.14216157]
[1741286075982,6.9354,144.19,144.15,0.14216157]
[1741286076915,25.16259842,144.19,144.15,0.14216157]
[1741286077109,0.28432314,144.18,144.14,82.1]
[1741286077411,0.28432314,144.18,144.15,0.14216157]
[1741286077599,6.9354,144.19,144.15,0.14216157]
[1741286080013,0.28432314,144.19,144.15,0.14216157]
[1741286080196,20.03,144.21,144.17,18.36935999]
[1741286080402,20.03,144.21,144.18,0.14216157]
[1741286081925,0.03,144.21,144.18,107.40495999]
[1741286082094,0.03,144.21,144.18,82.24216157]
[1741286082616,25.19159842,144.21,144.18,82.24216157]
[1741286083514,6.9644,144.21,144.18,82.24216157]
[1741286083703,18.51152156,144.2,144.18,82.1]
[1741286084226,38.22719842,144.19,144.18,82.1]
[1741286084602,38.22719842,144.19,144.13,82.133]
[1741286084805,38.22719842,144.19,144.14,0.14216157]
[1741286085212,20.0,144.19,144.14,18.36935999]
[1741286085717,26.9355,144.19,144.14,18.36935999]
[1741286086128,26.9355,144.19,144.14,25.30685999]
[1741286086420,18.22719842,144.18,144.14,0.14216157]
[1741286086592,18.22719842,144.18,144.13,82.133]
[1741286086789,18.22719842,144.17,144.14,0.14216157]
[1741286087008,18.22719842,144.17,144.13,82.133]
[1741286087009,18.22719842,144.16,144.13,0.033]
[1741286087225,18.22719842,144.15,144.13,0.033]
[1741286087427,8.37852314,144.18,144.13,0.033]
[1741286087599,18.22719842,144.17,144.13,0.033]
[1741286087799,6.9367,144.16,144.13,0.033]
[1741286089308,18.22719842,144.17,144.13,0.033]
[1741286089620,82.0,144.19,144.15,0.14216157]
[1741286089821,25.44642156,144.2,144.15,82.24216157]
[1741286090014,18.22719842,144.18,144.15,82.24216157]
[1741286090212,7.21922314,144.2,144.15,82.1]
[1741286090213,18.22719842,144.17,144.15,82.1]
[1741286090416,18.22719842,144.16,144.15,82.1]
[1741286090616,18.22719842,144.16,144.13,0.033]
[1741286090930,18.22719842,144.15,144.13,0.033]
[1741286091097,20.0,144.17,144.13,0.033]
[1741286091294,18.22719842,144.16,144.13,0.033]
[1741286091897,25.16409842,144.16,144.13,0.033]
[1741286093099,24.73312156,144.14,144.08,82.1]
[1741286093305,18.22719842,144.12,144.08,82.1]
[1741286093600,18.22719842,144.12,144.09,0.14216157]
[1741286093928,20.0,144.11,144.06,550.16019842]
[1741286094138,26.9391,144.11,144.06,82.133]
[1741286094319,26.9391,144.11,144.07,0.14216157]
[1741286094700,45.16629842,144.11,144.07,0.14216157]
[1741286095418,18.22719842,144.09,144.06,0.033]
[1741286095736,18.22719842,144.09,144.06,0.17516157]
[1741286095915,18.22719842,144.08,144.06,0.033]
[1741286096237,25.16789842,144.08,144.06,0.033]
[1741286096417,6.9407,144.08,144.06,0.033]
[1741286097308,25.16729842,144.09,144.06,0.033]
[1741286097940,38.51152156,144.11,144.06,0.17516157]
[1741286098107,0.28432314,144.11,144.06,25.34365999]
[1741286098633,6.9389,144.12,144.06,25.34365999]
[1741286099139,25.16609842,144.12,144.06,25.34365999]
[1741286099728,25.16609842,144.12,144.06,107.44365999]
[1741286099938,18.51152156,144.11,144.06,82.27516157]
[1741286100151,18.22719842,144.1,144.06,82.27516157]
[1741286100452,20.0,144.1,144.06,107.44375999]
[1741286100730,38.22719842,144.1,144.06,82.27516157]
[1741286101233,38.22719842,144.09,144.06,82.27516157]
[1741286101433,20.0,144.09,144.06,89.21656157]
[1741286101639,20.0,144.09,144.06,107.44375999]
[1741286101946,7.22352314,144.11,144.06,107.44375999]
[1741286102119,25.16599842,144.12,144.06,107.44375999]
[1741286103142,25.30765999,144.13,144.07,18.22719842]
[1741286103528,18.22719842,144.12,144.06,107.44375999]
[1741286103944,25.16679842,144.1,144.06,82.27516157]
[1741286104140,18.22719842,144.09,144.06,82.133]
[1741286104450,25.16679842,144.1,144.06,82.133]
[1741286104631,7.22342314,144.11,144.07,0.14216157]
[1741286105529,25.45062156,144.11,144.07,0.14216157]
[1741286106026,13.1593,144.14,144.07,0.14216157]
[1741286106339,8.4469,144.15,144.11,0.14216157]
[1741286106712,24.41519842,144.17,144.11,100.46935999]
[1741286107018,13.1246,144.17,144.11,100.46935999]
[1741286107725,0.03,144.18,144.14,0.14216157]
[1741286107923,18.22719842,144.17,144.14,0.14216157]
[1741286108115,18.22719842,144.16,144.13,82.1]
[1741286108326,0.28432314,144.15,144.13,82.1]
[1741286108620,25.19299842,144.18,144.12,18.36935999]
[1741286108825,25.19299842,144.18,144.12,82.24216157]
[1741286109026,25.19299842,144.18,144.12,100.46935999]
[1741286109221,25.19299842,144.18,144.12,412.46935999]
[1741286109429,0.03,144.18,144.15,0.14216157]
[1741286109726,0.03,144.18,144.15,100.46935999]
[1741286109935,0.03,144.18,144.17,18.22719842]
[1741286110446,0.03,144.18,144.16,18.22719842]
[1741286110626,0.03,144.18,144.15,100.46935999]
[1741286111346,0.03,144.18,144.16,18.22719842]
[1741286112148,0.03,144.18,144.16,107.26359842]
[1741286112440,0.03,144.18,144.16,82.1]
[1741286113722,18.22719842,144.17,144.11,107.12719842]
[1741286113922,0.28432314,144.16,144.11,107.12719842]
[1741286114123,6.9372,144.15,144.12,0.14216157]
[1741286114446,6.9658,144.18,144.14,0.14216157]
[1741286114644,18.22719842,144.16,144.13,82.1]
[1741286115024,18.22719842,144.15,144.13,82.1]
[1741286115218,18.22719842,144.16,144.12,0.14216157]
[1741286115948,6.9381,144.13,144.1,6.8]
[1741286116140,18.22719842,144.12,144.07,82.1]
[1741286116347,18.22719842,144.12,144.08,0.14216157]
[1741286116731,24.2835,144.13,144.08,18.36935999]
[1741286116732,6.9381,144.13,144.08,18.36935999]
[1741286117828,18.51152156,144.12,144.07,82.1]
[1741286118027,6.9396,144.1,144.07,82.1]
[1741286119328,6.9392,144.11,144.07,82.1]
[1741286120341,36.15061286,144.11,144.07,82.1]
[1741286121535,29.21141286,144.1,144.06,82.27516157]
[1741286121944,36.15061286,144.11,144.06,82.27516157]
[1741286123255,6.1575,144.12,144.06,118.42787443]
[1741286123561,13.0964,144.12,144.07,29.21141286]
[1741286123866,13.0961,144.12,144.07,29.21141286]
[1741286124067,13.0961,144.12,144.08,0.14216157]
[1741286124068,29.21141286,144.11,144.08,0.14216157]
[1741286124243,29.21141286,144.11,144.07,0.14216157]
[1741286124442,29.495736,144.1,144.06,0.033]
[1741286124645,29.21141286,144.07,144.06,0.033]
[1741286124947,1.87552314,144.02,144.0,0.033]
[1741286125278,36.439636,144.01,144.0,0.033]
[1741286125449,55.08928486,144.01,144.0,0.033]
[1741286126566,48.14538486,144.01,144.0,0.033]
[1741286126949,29.495736,144.01,144.0,0.033]
[1741286127571,36.439636,144.01,144.0,0.033]
[1741286127950,56.11241443,144.01,144.0,0.033]
[1741286128140,55.08928486,144.01,144.0,0.033]
[1741286131170,20.0,143.97,143.93,82.1]
[1741286131342,49.21141286,143.97,143.92,0.14216157]
[1741286131544,20.0,143.97,143.92,29.35357443]
[1741286131748,82.0,144.0,143.96,0.14216157]
[1741286132052,1.5912,144.02,143.96,29.35357443]
[1741286132253,0.28432314,144.01,143.96,29.35357443]
[1741286133268,7.22822314,144.01,143.96,29.35357443]
[1741286133479,36.439636,144.01,143.96,0.14216157]
[1741286133772,29.21141286,144.02,143.96,118.39987443]
[1741286134161,29.21141286,144.02,143.96,430.39987443]
[1741286134544,0.28432314,144.02,143.98,0.14216157]
[1741286134744,35.40151286,144.03,143.98,0.14216157]
[1741286134974,6.1901,144.03,143.98,111.45357443]
[1741286135268,13.1332,144.03,143.98,111.45357443]
[1741286135571,29.495736,144.02,143.98,82.24216157]
[1741286135774,29.21141286,144.0,143.98,82.1]
[1741286135947,29.21141286,144.0,143.97,0.14216157]
[1741286136355,29.21141286,143.98,143.95,0.14216157]
[1741286136550,29.21141286,143.98,143.92,111.31141286]
[1741286136870,49.21141286,143.97,143.93,0.14216157]
[1741286137369,56.15751286,143.97,143.93,0.14216157]
[1741286137764,26.9461,143.97,143.91,0.033]
[1741286137965,29.21141286,143.94,143.91,0.033]
[1741286138162,1.30745271,143.96,143.91,0.033]
[1741286138163,29.21141286,143.93,143.91,0.033]
[1741286138364,49.21141286,143.92,143.91,0.033]
[1741286138566,38.30442981,143.92,143.91,0.033]
[1741286138766,38.30442981,143.92,143.87,4.90815844]
[1741286138953,18.30442981,143.91,143.85,238.23742981]
[1741286139155,6.9492,143.9,143.85,238.23742981]
[1741286139380,18.30442981,143.89,143.85,219.933]
[1741286139587,18.30442981,143.89,143.85,82.133]
[1741286139879,18.30442981,143.88,143.85,0.033]
[1741286140372,24.09250242,143.89,143.85,0.033]
[1741286140691,29.58560915,143.89,143.85,0.033]
[1741286140981,29.30128601,143.9,143.85,0.033]
[1741286141776,0.28432314,143.92,143.86,0.14216157]
[1741286141963,29.30128601,143.91,143.86,0.14216157]
[1741286142163,29.58560915,143.92,143.86,29.44344758]
[1741286142365,35.13396268,143.92,143.86,0.14216157]
[1741286142554,29.58560915,143.92,143.86,0.14216157]
[1741286142873,49.30128601,143.91,143.86,0.14216157]
[1741286143178,20.0,143.91,143.86,0.14216157]
[1741286143376,49.30128601,143.91,143.86,0.14216157]
[1741286143576,56.25008601,143.91,143.86,0.14216157]
[1741286143972,29.30128601,143.9,143.86,0.14216157]
[1741286144169,49.30128601,143.91,143.86,0.14216157]
[1741286144382,56.25018601,143.91,143.86,0.14216157]
[1741286144571,29.30128601,143.9,143.86,0.14216157]
[1741286145371,29.30128601,143.89,143.86,0.14216157]
[1741286145572,6.9493,143.9,143.85,394.133]
[1741286145573,36.25058601,143.9,143.85,394.133]
[1741286145885,36.25058601,143.9,143.85,82.133]
[1741286148402,29.30128601,143.91,143.86,0.14216157]
[1741286149068,41.96865923,143.92,143.86,0.14216157]
[1741286149267,36.53430915,143.92,143.86,29.44344758]
[1741286149670,1.6531,143.95,143.9,0.14216157]
[1741286149892,30.95438601,143.95,143.9,0.14216157]
[1741286150069,42.89998601,143.96,143.9,29.44344758]
[1741286150264,48.58545105,143.96,143.9,29.44344758]
[1741286150489,29.58560915,143.94,143.89,82.1]
[1741286151190,0.28432314,143.94,143.89,111.40128601]
[1741286151390,29.30128601,143.95,143.9,0.14216157]
[1741286151777,42.89998601,143.96,143.9,36.39264758]
[1741286152096,29.30128601,143.95,143.9,0.14216157]
[1741286152265,29.30128601,143.95,143.86,144.6]
[1741286152266,49.30128601,143.93,143.87,29.30128601]
[1741286152461,49.30128601,143.93,143.87,111.40128601]
[1741286152704,49.58560915,143.92,143.87,82.1]
[1741286152994,29.30128601,143.91,143.87,82.1]
[1741286153199,49.58560915,143.92,143.87,82.1]
[1741286153690,6.9487,143.91,143.87,82.1]
[1741286154787,6.9487,143.91,143.87,0.14216157]
[1741286155713,6.9487,143.91,143.87,29.44344758]
[1741286155897,6.9487,143.91,143.86,341.44344758]
[1741286156093,6.9487,143.91,143.86,348.39444758]
[1741286156303,6.9484,143.92,143.87,29.30128601]
[1741286156503,29.30128601,143.95,143.89,0.14216157]
[1741286156705,36.24808601,143.95,143.89,29.44344758]
[1741286156901,29.30128601,143.94,143.89,0.14216157]
[1741286158209,6.9478,143.93,143.89,0.14216157]
[1741286158409,36.24868601,143.94,143.89,7.09176157]
[1741286158613,36.24868601,143.94,143.89,0.14216157]
[1741286158792,53.61698601,143.94,143.88,0.14216157]
[1741286158998,29.30128601,143.93,143.88,0.14216157]
[1741286159696,36.24868601,143.94,143.88,0.14216157]
[1741286160215,29.58560915,143.93,143.88,0.14216157]
[1741286160386,29.30128601,143.92,143.85,113.00188601]
[1741286160590,20.0,143.91,143.86,18.3061961]
[1741286160786,38.59051924,143.9,143.85,0.033]
[1741286161513,38.59051924,143.9,143.85,0.17516157]
[1741286162222,20.0,143.88,143.85,0.033]
[1741286162394,6.9507,143.87,143.85,0.033]
[1741286162817,20.0,143.88,143.85,0.033]
[1741286162999,20.0,143.88,143.85,18.3391961]
[1741286163204,6.9494,143.9,143.86,0.14216157]
[1741286164100,6.9489,143.91,143.86,82.24216157]
[1741286164302,25.2539961,143.93,143.87,18.3061961]
[1741286164499,25.2539961,143.93,143.86,82.1]
[1741286164500,18.3061961,143.89,143.86,82.1]
[1741286164698,18.3061961,143.89,143.85,0.033]
[1741286164918,0.28432314,143.91,143.85,0.033]
[1741286164919,18.3061961,143.87,143.85,0.033]
[1741286165120,1.02312957,143.9,143.85,0.033]
[1741286165121,18.3061961,143.86,143.85,0.033]
[1741286165324,18.59051924,143.86,143.85,0.033]
[1741286165999,0.28432314,143.83,143.77,82.1]
[1741286166194,18.3061961,143.82,143.78,0.14216157]
[1741286166527,6.9536,143.81,143.77,82.1]
[1741286166824,6.9536,143.81,143.78,0.14216157]
[1741286167001,18.3061961,143.8,143.75,219.9]
[1741286167316,18.3061961,143.79,143.73,550.2061961]
[1741286167517,18.59051924,143.8,143.74,18.44835767]
[1741286167725,0.28432314,143.8,143.74,18.44835767]
[1741286167903,18.59051924,143.8,143.74,18.3061961]
[1741286168102,18.59051924,143.8,143.75,0.14216157]
[1741286168609,25.54471924,143.8,143.75,0.14216157]
[1741286168819,18.59051924,143.8,143.75,0.14216157]
[1741286169022,18.3061961,143.79,143.75,0.14216157]
[1741286169605,18.3061961,143.79,143.73,550.2061961]
[1741286169912,18.3061961,143.75,143.7,0.033]
[1741286170227,18.3061961,143.75,143.7,0.17516157]
[1741286170407,20.0,143.75,143.71,18.3061961]
[1741286170728,20.0,143.75,143.72,0.14216157]
[1741286171020,6.3567,143.79,143.75,0.14216157]
[1741286171220,6.3567,143.79,143.72,0.14216157]
[1741286171221,18.3061961,143.77,143.72,0.14216157]
[1741286171408,18.3061961,143.76,143.72,0.14216157]
[1741286171804,18.3061961,143.77,143.72,0.14216157]
[1741286172408,25.2624961,143.76,143.72,0.14216157]
[1741286173496,18.3061961,143.77,143.72,0.14216157]
[1741286173895,18.3061961,143.77,143.72,0.17516157]
[1741286174114,18.59051924,143.78,143.72,7.13296157]
[1741286174917,20.0,143.76,143.72,0.17516157]
[1741286175122,20.0,143.76,143.72,7.13306157]
[1741286175315,18.3061961,143.78,143.72,25.43925767]
[1741286175507,82.0,143.79,143.74,18.44835767]
[1741286175716,82.0,143.79,143.76,0.14216157]
[1741286176032,18.3061961,143.81,143.76,0.14216157]
[1741286176237,18.3061961,143.82,143.76,100.54835767]
[1741286176410,31.6391961,143.83,143.78,0.14216157]
[1741286176607,18.3061961,143.82,143.78,0.14216157]
[1741286177220,18.3061961,143.81,143.78,0.14216157]
[1741286177543,18.3061961,143.79,143.76,82.1]
[1741286177709,18.3061961,143.79,143.75,0.14216157]